Cogmind - Beta 13 @@@ ROGUE MODE // 2024.07.06 @ 19:26:54 Player: APerTAS Result: Self-destructed Performance ------------- Evolutions (2) 1000 Regions Visited (3) 600 Robots Destroyed (28) 140 Value Destroyed (683) 683 Prototype IDs (2) 40 Alien Tech Used (0) 0 Bonus (0) 0 TOTAL SCORE: 2463 Bonus ------- None Cogmind --------- Core Integrity 485/550 Matter 210/300 Energy 177/250 System Corruption 0% Temperature Danger (423) Movement Flying (29) Location -8/Materials Parts ------- > --- POWER (2) -------- Ion Engine > --- PROPULSION (3) --- Improved Cesium-ion Thruster Improved Cesium-ion Thruster Improved Cesium-ion Thruster > --- UTILITY (3) ------ Heat Sink Weight Redist. System Visual Processing Unit > --- WEAPON (3) ------- Beam Rifle Cooled Particle Cannon > --- INVENTORY (5) ---- Improved Cesium-ion Thruster Huge Storage Unit Hardened Medium Armor Plating Cooled Particle Cannon Peak State ------------ > --- POWER ------------ Ion Engine Light Ion Engine > --- PROPULSION ------- Improved Cesium-ion Thruster Improved Cesium-ion Thruster Improved Cesium-ion Thruster > --- UTILITY ---------- Heat Sink Weight Redist. System Visual Processing Unit > --- WEAPON ----------- Beam Rifle Cooled Particle Cannon Light Cannon > --- INVENTORY -------- Improved Cesium-ion Thruster Huge Storage Unit Cooled Particle Cannon [Rating: 31] Favorites ----------- Power Light Ion Engine Engine Light Ion Engine Propulsion Aluminum Leg Treads Light Treads Leg Aluminum Leg Wheel Wheel Hover Unit Hover Unit Flight Unit Improved Cesium-ion Thruster Utility Heat Sink Device Heat Sink Storage Huge Storage Unit Processor Visual Processing Unit Weapon EM Pulse Gun Energy Gun EM Pulse Gun Energy Cannon Cooled Particle Cannon Ballistic Gun Light Assault Rifle Ballistic Cannon Light Cannon Build | -11 -10 -9 -8 ------- Run | Yrd Mat Mat Mat Slots Evolved 4 | . . 2 2 Power 1 | . . . 1 Propulsion 1 | . . 1 . Utility 1 | . . . 1 Weapon 1 | . . 1 . Parts Attached 49 | 11 22 10 6 Power 7 | 2 3 1 1 Engine 7 | 2 3 1 1 Core . | . . . . Reactor . | . . . . Propulsion 23 | 6 10 4 3 Treads 3 | . 3 . . Leg 8 | 4 . 4 . Wheel 6 | 2 4 . . Hover 1 | . 1 . . Flight 5 | . 2 . 3 Utility 10 | 1 6 2 1 Device 7 | 1 4 1 1 Storage 2 | . 2 . . Processor 1 | . . 1 . Hackware . | . . . . Protection . | . . . . Artifact . | . . . . Weapon 9 | 2 3 3 1 Energy Gun 4 | 1 1 2 . Energy Cannon 1 | . . . 1 Ballistic Gun 1 | 1 . . . Ballistic Cannon 3 | . 2 1 . Launcher . | . . . . Special Weapon . | . . . . Impact Weapon . | . . . . Slashing Weapon . | . . . . Piercing Weapon . | . . . . Special Melee Weapon . | . . . . Unidentified Prototypes 2 | . . . 2 Parts Lost 9 | . 6 1 2 Power 2 | . 1 . 1 Propulsion 3 | . 3 . . Utility 1 | . 1 . . Weapon 3 | . 1 1 1 Highest Loss Streak 4 | . 4 1 2 To Critical Strikes . | . . . . Average Slot Usage (%) 78 | . 74 80 86 Engine 12 | . 12 11 14 Treads 3 | . 3 3 . Leg 13 | . 8 23 4 Flight 3 | . 1 . 19 Device 16 | . 20 11 15 Processor 3 | . . 5 9 Energy Gun 13 | . 12 16 9 Ballistic Gun 4 | . 8 . . Ballistic Cannon 6 | . 3 9 8 Naked Turns . | . . . . Heaviest Build 22 | 8 10 14 22 Greatest Support 30 | 20 20 30 30 Greatest Overweight (x) 3 | 1 2 . 3 Average Overweight (x) . | . . . . Largest Inventory Capacity 25 | 5 25 5 5 Average Capacity 5 | 5 5 5 5 Most Carried 5 | 5 5 4 5 Average Carried 2 | 2 2 3 3 Final Capacity 5 | 5 5 5 5 Final Carried 4 | 2 3 4 4 Class Distribution -------------------- 70% | Mutant 13% | Scavenger-Skirmisher 7% | Scavenger-Mutant 5% | Scavenger-Sprinter Dominant Class ---------------- Mutant | -10/Materials Scavenger-Skirmisher | -9/Materials Scavenger-Sprinter | -8/Materials Resources | -11 -10 -9 -8 ----------- Run | Yrd Mat Mat Mat Matter Collected 735 | 258 270 207 . Remotely . | . . . . Salvage Created 966 | 44 445 385 92 Parts 59 | 2 27 24 6 Haulers Intercepted . | . . . . Recyclers Shooed 4 | . . 4 . Parts Field Recycled . | . . . . Retrieved Matter . | . . . . Parts Self-Destructed . | . . . . Prevented . | . . . . Kills | -11 -10 -9 -8 ------- Run | Yrd Mat Mat Mat Combat Hostiles Destroyed 23 | 1 11 9 2 Guns 16 | 1 10 4 1 Cannons 5 | . . 4 1 AOE 2 | . 1 1 . Classes Destroyed 6 | 1 4 1 . Builder 1 | . 1 . . Recycler 2 | . 1 1 . Watcher 2 | . 2 . . Swarmer 9 | . 6 3 . Grunt 12 | 1 5 5 1 Sentry 2 | . . 1 1 Best Kill Streak 6 | 1 6 3 2 Combat Bots Only 3 | 1 3 3 2 Max Kills in Single Turn 2 | 1 2 1 1 Gunslinging 1 | . 1 . . Exploded 1 | . 1 1 . Melee . | . . . . Uniques/NPCs Destroyed . | . . . . Combat | -11 -10 -9 -8 -------- Run | Yrd Mat Mat Mat Hostile Shots Fired 169 | 5 95 42 27 Missed 70 | 2 37 20 11 Damage Taken 1224 | 36 706 236 246 Core 383 | 12 218 88 65 Absorbed by Shields . | . . . . Core Remaining (%) 60 | 95 8 78 . Volleys Fired 77 | 4 38 25 10 Largest 3 | 1 2 3 3 Hottest 131 | 40 75 131 121 Shots Fired 156 | 4 60 64 28 Gun 110 | 4 57 39 10 Cannon 46 | . 3 25 18 Launcher . | . . . . Special . | . . . . Kinetic 64 | . 29 25 10 Thermal 46 | 4 9 15 18 Explosive . | . . . . Electromagnetic 46 | . 22 24 . Robot Hit Streak 9 | 4 8 9 4 Robot Miss Streak 7 | . 7 5 4 Penetration Max . | . . . . Secondary Targets 1 | . 1 . . Max Gunslinging Chain 1 | . 1 . . Shots Hit Robots 78 | 4 29 32 13 Core Hits 42 | 2 22 13 5 Critical Kills . | . . . . Critical Parts Destroyed . | . . . . Critical Strikes 2 | . . 2 . Blast 2 | . . 2 . Melee Attacks . | . . . . Impact . | . . . . Slashing . | . . . . Piercing . | . . . . Sneak Attacks . | . . . . Combat Hostiles . | . . . . Follow-up Attacks . | . . . . Damage Inflicted 1459 | 48 496 570 345 Guns 741 | 44 355 256 86 Cannons 519 | . 37 223 259 Explosions 186 | . 104 82 . Melee . | . . . . Ramming 13 | 4 . 9 . Kinetic 497 | . 154 223 120 Thermal 561 | 44 137 155 225 Explosive . | . . . . Electromagnetic 388 | . 205 183 . Impact . | . . . . Slashing . | . . . . Piercing . | . . . . Highest Corruption . | . . . . Average Corruption . | . . . . Corruption Purged . | . . . . Corruption Blocked . | . . . . Overload Shots . | . . . . Overflow Damage 7 | . . . 7 Projectiles 7 | . . . 7 Explosions . | . . . . Melee . | . . . . Knockbacks 3 | . 1 2 . Impact . | . . . . Kinetic 3 | . 1 2 . Secondary . | . . . . Self-Inflicted Damage 34 | . 34 . . Shots 1 | . 1 . . Rammed . | . . . . Targets Rammed 6 | 1 . 5 . Kicked 6 | 1 . 5 . Crushed . | . . . . Highest Temperature 405 | 18 27 147 405 Average Temperature 93 | 10 9 56 196 Received Heat Transfer 576 | 18 321 66 171 Effects 1 | . . . 1 Damage (minor) 1 | . . . 1 Siege Activations . | . . . . Robots Corrupted . | . . . . Combat Hostiles . | . . . . Parts Fried . | . . . . Impact Corruptions . | . . . . Robots Melted . | . . . . Combat Hostiles . | . . . . Parts Melted . | . . . . Heat Transferred 917 | 100 175 235 407 Parts Sabotaged . | . . . . Parts Stolen . | . . . . Parts Stripped . | . . . . Power Chain Reactions 4 | . 2 2 . Alert | -11 -10 -9 -8 ------- Run | Yrd Mat Mat Mat Peak Influence 295 | 20 275 295 137 Initial 45 | . . 42 45 Average 72 | . 83 128 62 Maximum Alert Level 1 | . 1 1 . Low Security (%) 94 | 100 92 91 100 Level 1 5 | . 7 8 . Level 2 . | . . . . Level 3 . | . . . . Level 4 . | . . . . Level 5 . | . . . . High Security . | . . . . Max Security . | . . . . Squads Dispatched 4 | . 1 2 1 Investigation 2 | . 1 . 1 Extermination . | . . . . Reinforcement 2 | . . 2 . Assault . | . . . . Garrison . | . . . . Intercept . | . . . . Searches Triggered . | . . . . Construction Impeded . | . . . . Haulers Reinforced . | . . . . Active Scanning Responses . | . . . . Cargo Convoy Interrupts . | . . . . Stealth | -11 -10 -9 -8 --------- Run | Yrd Mat Mat Mat Distress Signals 4 | . 1 3 . Communications Jammed . | . . . . Distress Signals . | . . . . Times Spotted 38 | 1 17 12 8 Peak Tracking Total 8 | 1 7 4 8 Tactical Retreats 2 | . 1 1 . Traps | -11 -10 -9 -8 ------- Run | Yrd Mat Mat Mat Traps Triggered 4 | . 4 . . Indirectly . | . . . . Trap Hack Attempts . | . . . . Triggered . | . . . . Disarmed . | . . . . Reprogrammed . | . . . . Reused . | . . . . Traps Extracted . | . . . . Installed . | . . . . Triggered . | . . . . Machines | -11 -10 -9 -8 ---------- Run | Yrd Mat Mat Mat Machines Disabled 2 | . 1 1 . Max in Single Turn 1 | . 1 1 . Machines Repaired . | . . . . Machines Dismantled . | . . . . Machines Sabotaged . | . . . . Overloaded Fab Kills . | . . . . Hacking | -11 -10 -9 -8 --------- Run | Yrd Mat Mat Mat Machines Accessed 4 | . 2 1 1 Terminals 4 | . 2 1 1 Fabricators . | . . . . Repair Stations . | . . . . Recycling Units . | . . . . Scanalyzers . | . . . . Garrison Access . | . . . . Total Hacks 12 | . 6 3 3 Successful 5 | . 2 1 2 Failed 7 | . 4 2 1 Catastrophic . | . . . . Database Lockouts . | . . . . Manual . | . . . . Terminals 12 | . 6 3 3 Fabricators . | . . . . Repair Stations . | . . . . Recycling Units . | . . . . Scanalyzers . | . . . . Garrison Access . | . . . . Terminal Hacks 5 | . 2 1 2 Record 4 | . 1 1 2 Hauler Manifests 1 | . 1 . . Fabricator Hacks . | . . . . Repair Station Hacks . | . . . . Recycling Unit Hacks . | . . . . Scanalyzer . | . . . . Garrison Access Hacks . | . . . . Unauthorized Hacks . | . . . . Terminals . | . . . . Fabricators . | . . . . Repair Stations . | . . . . Recycling Units . | . . . . Scanalyzers . | . . . . Garrison Access . | . . . . Data Cores Recovered . | . . . . Used . | . . . . Hacking Detections 2 | . 1 . 1 Full Trace Events 2 | . 1 . 1 Feedback Events . | . . . . Feedback Blocked . | . . . . Robot Schematics Acquired . | . . . . Robots Built . | . . . . Authchips . | . . . . Time . | . . . . Total Robot Build Rating . | . . . . Part Schematics Acquired . | . . . . Parts Built . | . . . . Authchips . | . . . . Time . | . . . . Total Part Build Rating . | . . . . Parts Repaired . | . . . . Time . | . . . . Parts Recycled . | . . . . Recycled Matter . | . . . . Retrieved Matter . | . . . . Retrieved Components . | . . . . Parts Scanalyzed . | . . . . Part Schematics Acquired . | . . . . Parts Damaged . | . . . . Bothacking | -11 -10 -9 -8 ------------ Run | Yrd Mat Mat Mat Used RIF Installer . | . . . . Robots Hacked . | . . . . Non-combat . | . . . . Combat . | . . . . Robot Hacks Applied . | . . . . Relay Couplers Released . | . . . . Fabnet Peak Effective % . | . . . . Robots Rewired . | . . . . Allies Hacked . | . . . . Hacks Repelled . | . . . . Allies | -11 -10 -9 -8 -------- Run | Yrd Mat Mat Mat Total Allies . | . . . . Largest Group . | . . . . Highest-Rated Group . | . . . . Highest-Rated Ally . | . . . . Total Orders . | . . . . Ally Attacks . | . . . . Total Damage . | . . . . Kills . | . . . . Allies Corrupted . | . . . . Allies Melted . | . . . . Intel | -11 -10 -9 -8 ------- Run | Yrd Mat Mat Mat Robot Analysis Total . | . . . . Derelict Logs Recovered . | . . . . Drone Launches . | . . . . Drone Recoveries . | . . . . Exploration | -11 -10 -9 -8 ------------- Run | Yrd Mat Mat Mat Turns Passed 1559 | 417 606 425 111 Spaces Moved 1065 | 272 388 250 155 Core 172 | 74 95 . 3 Treads 136 | . 86 50 . Legs 510 | 159 136 200 15 Wheels 84 | 39 45 . . Hover . | . . . . Flight 163 | . 26 . 137 Fastest Speed 29 | 50 37 120 29 Average Speed 103 | 95 117 128 41 Slowest Speed 200 | 120 160 160 200 Overloaded Moves . | . . . . Propulsion Burnouts . | . . . . Robots Hopped . | . . . . Cave-ins Triggered . | . . . . Exploration Rate (%) 19 | 7 38 21 10 Regions Visited 3 Branch Regions . Pre-discovered Areas . | . . . . Known Exits Taken . | . . . . Unknown Exits Taken 3 | 1 1 1 . Scrap Searched . | . . . . Spaces Dug . | . . . . Terrain Destroyed 10 | . 3 5 2 Melee . | . . . . Projectile 2 | . . . 2 AOE 8 | . 3 5 . Terrain Rammed . | . . . . Walls Destroyed . | . . . . Machines Disabled . | . . . . Actions | -11 -10 -9 -8 --------- Run | Yrd Mat Mat Mat Total 1393 | 424 486 301 182 Wait 137 | 125 12 . . Move 1062 | 271 387 249 155 Hop . | . . . . Pick Up 42 | 10 16 9 7 Fast Attach . | . . . . Attach 38 | 8 16 8 6 Detach 6 | . 5 1 . Swap 11 | 3 6 2 . Drop 14 | 2 6 2 4 Fire 77 | 4 38 25 10 Melee . | . . . . Ram . | . . . . Kick 6 | 1 . 5 . Crush . | . . . . Escape Stasis . | . . . . Rewire . | . . . . Trap . | . . . . Miscellaneous . | . . . . Route ------- -11/Scrapyard -10/Materials -9/Materials -8/Materials History --------- Turn | Location | Event 2 | -11/Scrapyard | Met Revision 17 372 | -11/Scrapyard | Discovered new exit (range 8) 418 | -11/Scrapyard | Entered Materials 438 | -10/Materials | Build established: Mutant 590 | -10/Materials | Core integrity fell below 50% 626 | -10/Materials | Core integrity fell below 20% 657 | -10/Materials | Lost 4 parts (1p2n1w) 949 | -10/Materials | Discovered new exit (range 11) 1024 | -10/Materials | Entered another Materials area 1024 | -9/Materials | Evolved 2 slots: Propulsion x1, Weapon x1 1258 | -9/Materials | Discovered new exit (range 5) 1449 | -9/Materials | Entered another Materials area 1449 | -8/Materials | Evolved 2 slots: Power x1, Utility x1 1560 | -8/Materials | Self-destructed Last Messages --------------- mid-levels where they are more easily dealt with, suggesting they are originating from deeper in the [Caves], which extend furthest at those depths. ALERT: Suspicious activity at Terminal M002. Dispatching Investigation squad. [Achievement: One Hack Too Far] U-05 Engineer builds a Wall. Electrolysis Chamber disabled. Destroyed Lgt. Nuclear Core. G-47 Trooper destroyed. U-05 Engineer builds a Wall. Critical hit (Burn: +37). R-06 Scavenger collects Imp. Heat Sink. Y-45 Defender destroyed. Overheating: Imp. Cesium-ion Thruster damaged (-32). Lgt. Ion Engine destroyed. Critical hit (Burn: +37). Lgt. Cannon destroyed. Map ----- +----------------------------------------------------+ | ?????????????????????????????????????????????????? | | ?????????????????????????????????????????????????? | | ?????????????????????????????????????????????????? | | ?????????????????????????????????????????????????? | | ?????????????????????????????????????????????????? | | ????????????????????????? ?????????????????????? | | ????????????????????????? = ????????????????????? | | ???? ??????????????????=%[ ????????????????????? | | ???? ?????????????????? !k ????????????????????? | | ???# #????????????????? %????????????????????? | | ???# #????????????????? #????????????????????? | | ???# #????????????????? #????????????????????? | | ???# #????????????????# #????????????????????? | | ???# #????????????????#g #????????????????????? | | ???# +????????????????# g #????????????????????? | | ??## #????????????????# g#????????????????????? | | ??## #????????????????# #????????????????????? | | ???# #########????????# #????????????????????? | | ???# % #????????# #????????????????????? | | ???# % #????????# l#????????????????????? | | ???# T #????????# #????????????????????? | | ???# " [% #????????# #????????????????????? | | ???# """ #????????# #????????????????????? | | ???# "" ##???????# #????????????????????? | | ???#! ########## #????????????????????? | | ??## g @ ###################### | | ??# g | | ### | | % | | ####+##### ###+################## ####### | | ?????????####### #?????????????#=== #?????? | | ???????????????# "" #?????????????# !! #?????? | | ???????????????# """ #?????????????#= !!]]#?????? | | ???????????????# S" #?????????????########?????? | | ???????????????# #??????????????????????????? | | ???????????????# ! #??????????????????????????? | | ???????????????########??????????????????????????? | | ?????????????????????????????????????????????????? | | ?????????????????????????????????????????????????? | | ?????????????????????????????????????????????????? | | ?????????????????????????????????????????????????? | | | | | | | | | | | | | | | | | | | +----------------------------------------------------+ Best States ------------- Heat Dissipation 41 Energy Generation 15 Energy Capacity 275 Matter Stores 300 Matter Capacity 300 Sight Range 18 Terrain Scan Range 14 Terrain Scan Density 10 Additional Mass Support 6 Evasion (%) 64 Recoil Reduction 1 Item Schematics ----------------- None Robot Schematics ------------------ None Fabricated ------------ Nothing Alien Tech Used ----------------- None Achievements -------------- Close Call One Hack Too Far Risk Taker Shopping List Storm Trooper Uninvited Guest Challenges ------------ None Game ------ Seed MappingExoskeletonTerrabomb Manual? 0 Play Time 01:04:24 Cumulative 1.0 hours Start 2024.07.06 @ 18:15:02 End 2024.07.06 @ 19:26:54 Sessions 1 Manual Loads 0 Difficulty Rogue Special Mode None Game No. 1 Rogue 1 Adventurer 0 Explorer 0 Win Type - Total 0 Types 0/0/0/0/0/0/0/0/0 Lore% 0 Gallery% 1 Achievement% 2 Wizard Run 0 Options --------- Layout 1 ASCII 0 Keyboard 0 Movement Arrows Keybinds 0 Fullscreen 1 Font 28/Dina Map View 50x43 Zoom Use 0% Tactical HUD 0 Map Filters NONE Filters NONE Steam 1 RUN: c59b76a4-0a55-43cd-9a03-ea4baf9d67ff